fUSD/lending_fUSD_20241221
["ID","MTS","AMOUNT","RATE_DAILY","PERIOD"]
[346187481,1734769847896,-164.66316494,0.00019446,2]
[346187482,1734769847906,-500.0,0.00019446,2]
[346187483,1734769847916,-604.08399659,0.00019446,2]
[346187484,1734769847926,-500.56474595,0.00019446,2]
[346187485,1734769847937,-502.40132212,0.00019446,2]
[346187486,1734769847947,-500.0,0.00019446,2]
[346187487,1734769847956,-500.0,0.00019446,2]
[346187488,1734769847966,-391.71573673,0.00019446,2]
[346187489,1734769847976,-500.0,0.00019446,2]
[346187490,1734769847986,-500.0,0.00019446,2]
[346187491,1734769847996,-500.0,0.00019446,2]
[346187492,1734769848006,-500.0,0.00019446,2]
[346187493,1734769848016,-500.0,0.00019446,2]
[346187494,1734769848026,-500.0,0.00019446,2]
[346187495,1734769848039,-500.0,0.00019446,2]
[346187496,1734769848050,-500.0,0.00019446,2]
[346187497,1734769848060,-520.73,0.00019446,2]
[346187498,1734769848070,-207.51337143,0.00019446,2]
[346187499,1734769848079,-500.0,0.00019446,2]
[346187500,1734769848089,-500.0,0.00019446,2]
[346187501,1734769848099,-500.0,0.00019446,2]
[346187502,1734769848110,-500.0,0.00019446,2]
[346187503,1734769848121,-500.0,0.00019446,2]
[346187504,1734769848131,-500.0,0.00019446,2]
[346187505,1734769848141,-508.78604634,0.00019446,2]
[346187506,1734769848151,-500.0,0.00019446,2]
[346187507,1734769848162,-500.0,0.00019446,2]
[346187508,1734769848172,-503.77509053,0.00019446,2]
[346187509,1734769848182,-500.0,0.00019446,2]
[346187510,1734769848192,-500.0,0.00019446,2]
[346187511,1734769848202,-500.0,0.00019446,2]
[346187512,1734769848212,-500.0,0.00019446,2]
[346187513,1734769848222,-500.0,0.00019446,2]
[346187514,1734769848232,-500.0,0.00019446,2]
[346187515,1734769848246,-500.0,0.00019446,2]
[346187516,1734769848255,-500.0,0.00019446,2]
[346187517,1734769848265,-500.0,0.00019446,2]
[346187518,1734769848275,-500.0,0.00019446,2]
[346187519,1734769848285,-500.0,0.00019446,2]
[346187520,1734769848295,-500.0,0.00019446,2]
[346187521,1734769848304,-500.0,0.00019446,2]
[346187522,1734769848314,-500.0,0.00019446,2]
[346187523,1734769848324,-500.0,0.00019446,2]
[346187524,1734769848334,-500.0,0.00019446,2]
[346187525,1734769848346,-500.0,0.00019446,2]
[346187526,1734769848355,-500.0,0.00019446,2]
[346187527,1734769848365,-502.86469776,0.00019446,2]
[346187528,1734769848376,-500.0,0.00019446,2]
[346187529,1734769848385,-500.0,0.00019446,2]
[346187530,1734769848395,-500.0,0.00019446,2]
[346187531,1734769848405,-500.0,0.00019446,2]
[346187532,1734769848416,-500.0,0.00019446,2]
[346187533,1734769848426,-500.0,0.00019446,2]
[346187534,1734769848436,-500.0,0.00019446,2]
[346187535,1734769848446,-500.0,0.00019446,2]
[346187536,1734769848457,-500.0,0.00019446,2]
[346187537,1734769848467,-500.0,0.00019446,2]
[346187538,1734769848478,-500.0,0.00019446,2]
[346187539,1734769848489,-815.52,0.00019446,2]
[346187540,1734769848499,-500.0,0.00019446,2]
[346187541,1734769848510,-500.0,0.00019446,2]
[346187542,1734769848520,-500.0,0.00019446,2]
[346187543,1734769848530,-612.72156781,0.00019446,2]
[346187544,1734769848540,-500.0,0.00019446,2]
[346187545,1734769848550,-500.0,0.00019446,2]
[346187546,1734769848560,-500.0,0.00019446,2]
[346187547,1734769848570,-500.0,0.00019446,2]
[346187548,1734769848581,-500.0,0.00019446,2]
[346187549,1734769848591,-483.39422797,0.00019446,2]
[346187550,1734769848601,-500.0,0.00019446,2]
[346187551,1734769848611,-514.87802203,0.00019446,2]
[346187552,1734769848621,-500.0,0.00019446,2]
[346187553,1734769848631,-500.0,0.00019446,2]
[346187554,1734769848640,-500.0,0.00019446,2]
[346187555,1734769848651,-500.0,0.00019446,2]
[346187556,1734769848663,-500.0,0.00019446,2]
[346187557,1734769848673,-500.0,0.00019446,2]
[346187558,1734769848683,-500.0,0.00019446,2]
[346187559,1734769848693,-500.0,0.00019446,2]
[346187560,1734769848703,-500.0,0.00019446,2]
[346187561,1734769848713,-500.0,0.00019446,2]
[346187562,1734769848723,-500.0,0.00019446,2]
[346187563,1734769848733,-500.0,0.00019446,2]
[346187564,1734769848745,-500.0,0.00019446,2]
[346187565,1734769848756,-500.0,0.00019446,2]
[346187566,1734769848767,-500.0,0.00019446,2]
[346187567,1734769848778,-500.0,0.00019446,2]
[346187568,1734769848788,-500.0,0.00019446,2]
[346187569,1734769848799,-500.0,0.00019446,2]
[346187570,1734769848809,-500.0,0.00019446,2]
[346187571,1734769848818,-500.0,0.00019446,2]
[346187572,1734769848828,-500.0,0.00019446,2]
[346187573,1734769848839,-500.0,0.00019446,2]
[346187574,1734769848849,-500.0,0.00019446,2]
[346187575,1734769848859,-690.78,0.00019446,2]
[346187576,1734769848870,-500.0,0.00019446,2]
[346187577,1734769848880,-500.0,0.00019446,2]
[346187578,1734769848890,-500.0,0.00019446,2]
[346187579,1734769848900,-500.0,0.00019446,2]
[346187580,1734769848911,-500.0,0.00019446,2]
[346187581,1734769848921,-500.0,0.00019446,2]
[346187582,1734769848931,-500.0,0.00019446,2]
[346187583,1734769848941,-500.0,0.00019446,2]
[346187584,1734769848952,-377.16240919,0.00019446,2]
[346187585,1734769848963,-500.0,0.00019446,2]
[346187586,1734769848973,-500.0,0.00019446,2]
[346187587,1734769848984,-500.0,0.00019446,2]
[346187588,1734769848997,-500.0,0.00019446,2]
[346187589,1734769849008,-500.0,0.00019446,2]
[346187590,1734769849019,-500.0,0.00019446,2]
[346187591,1734769849028,-500.0,0.00019446,2]
[346187592,1734769849042,-500.0,0.00019446,2]
[346187593,1734769849052,-500.0,0.00019446,2]
[346187594,1734769849063,-150.0,0.00019446,2]
[346187595,1734769849074,-500.0,0.00019446,2]
[346187596,1734769849085,-500.0,0.00019446,2]
[346187597,1734769849095,-500.0,0.00019446,2]
[346187598,1734769849105,-5000.0,0.00019446,2]
[346187599,1734769849115,-500.0,0.00019446,2]
[346187600,1734769849125,-500.0,0.00019446,2]
[346187601,1734769849135,-500.0,0.00019446,2]
[346187602,1734769849145,-500.0,0.00019446,2]
[346187603,1734769849155,-718.77,0.00019446,2]
[346187604,1734769849166,-500.0,0.00019446,2]
[346187605,1734769849177,-500.0,0.00019446,2]
[346187606,1734769849187,-500.0,0.00019446,2]
[346187607,1734769849198,-502.29359484,0.00019446,2]
[346187608,1734769849209,-500.0,0.00019446,2]
[346187609,1734769849219,-500.0,0.00019446,2]
[346187610,1734769849230,-632.48,0.00019446,2]
[346187611,1734769849242,-500.0,0.00019446,2]
[346187612,1734769849252,-500.0,0.00019446,2]
[346187613,1734769849263,-500.0,0.00019446,2]
[346187614,1734769849273,-743.32,0.00019446,2]
[346187615,1734769849284,-500.0,0.00019446,2]
[346187616,1734769849295,-500.0,0.00019446,2]
[346187617,1734769849305,-500.0,0.00019446,2]
[346187618,1734769849316,-549.62,0.00019446,2]
[346187619,1734769849326,-500.0,0.00019446,2]
[346187620,1734769849337,-500.0,0.00019446,2]
[346187621,1734769849347,-500.0,0.00019446,2]
[346187622,1734769849357,-500.0,0.00019446,2]
[346187623,1734769849367,-500.0,0.00019446,2]
[346187624,1734769849378,-787.15,0.00019446,2]
[346187625,1734769849388,-500.0,0.00019446,2]
[346187626,1734769849398,-500.0,0.00019446,2]
[346187627,1734769849408,-1315.85,0.00019446,2]
[346187628,1734769849418,-500.0,0.00019446,2]
[346187629,1734769849428,-500.0,0.00019446,2]
[346187630,1734769849438,-500.0,0.00019446,2]
[346187631,1734769849448,-500.0,0.00019446,2]
[346187632,1734769849458,-500.0,0.00019446,2]
[346187633,1734769849469,-500.0,0.00019446,2]
[346187634,1734769849479,-500.0,0.00019446,2]
[346187635,1734769849494,-500.0,0.00019446,2]
[346187636,1734769849504,-500.0,0.00019446,2]
[346187637,1734769849514,-704.01,0.00019446,2]
[346187638,1734769849525,-500.0,0.00019446,2]
[346187639,1734769849535,-661.33,0.00019446,2]
[346187640,1734769849546,-567.52622377,0.00019446,2]
[346187641,1734769849558,-526.74,0.00019446,2]
[346187642,1734769849569,-500.0,0.00019446,2]
[346187643,1734769849580,-500.0,0.00019446,2]
[346187644,1734769849590,-500.0,0.00019446,2]
[346187645,1734769849601,-842.34,0.00019446,2]
[346187646,1734769849613,-500.0,0.00019446,2]
[346187647,1734769849866,-500.0,0.00019446,2]
[346187648,1734769849876,-757.69,0.00019446,2]
[346187649,1734769849886,-500.0,0.00019446,2]
[346187650,1734769849895,-500.0,0.00019446,2]
[346187651,1734769849904,-500.0,0.00019446,2]
[346187652,1734769849914,-500.0,0.00019446,2]
[346187653,1734769849924,-585.39,0.00019446,2]
[346187654,1734769849933,-500.0,0.00019446,2]
[346187655,1734769849943,-500.0,0.00019446,2]
[346187656,1734769849952,-500.0,0.00019446,2]
[346187657,1734769849962,-636.28,0.00019446,2]
[346187658,1734769849971,-890.26,0.00019446,2]
[346187659,1734769849980,-534.84,0.00019446,2]
[346187660,1734769849990,-500.0,0.00019446,2]
[346187661,1734769850000,-500.0,0.00019446,2]
[346187662,1734769850009,-932.08,0.00019446,2]
[346187663,1734769850019,-500.0,0.00019446,2]
[346187664,1734769850028,-1134.01,0.00019446,2]
[346187665,1734769850038,-600.68,0.00019446,2]
[346187666,1734769850050,-500.0,0.00019446,2]
[346187667,1734769850060,-855.23,0.00019446,2]
[346187668,1734769850069,-606.37177322,0.00019446,2]
[346187669,1734769850079,-692.41,0.00019446,2]
[346187670,1734769850088,-1029.74,0.00019446,2]
[346187671,1734769850097,-500.0,0.00019446,2]
[346187672,1734769850107,-1143.08,0.00019446,2]
[346187673,1734769850118,-500.0,0.00019446,2]
[346187674,1734769850127,-1431.58,0.00019446,2]
[346187675,1734769850136,-1062.77,0.00019446,2]
[346187676,1734769850146,-500.0,0.00019446,2]
[346187677,1734769850155,-955.25,0.00019446,2]
[346187678,1734769850165,-1134.38,0.00019446,2]
[346187679,1734769850174,-762.27,0.00019446,2]
[346187680,1734769850183,-759.77,0.00019446,2]
[346187681,1734769850192,-852.61,0.00019446,2]
[346187682,1734769850202,-500.0,0.00019446,2]
[346187683,1734769850211,-1483.74,0.00019446,2]
[346187684,1734769850220,-549.0,0.00019446,2]
[346187685,1734769850229,-666.82,0.00019446,2]
[346187686,1734769850238,-500.0,0.00019446,2]
[346187687,1734769850247,-926.1,0.00019446,2]
[346187688,1734769850256,-500.0,0.00019446,2]
[346187689,1734769850266,-617.66,0.00019446,2]
[346187690,1734769850275,-783.6,0.00019446,2]
[346187691,1734769850284,-500.0,0.00019446,2]
[346187692,1734769850294,-982.44,0.00019446,2]
[346187693,1734769850304,-1160.56,0.00019446,2]
[346187694,1734769850313,-500.0,0.00019446,2]
[346187695,1734769850323,-500.0,0.00019446,2]
[346187696,1734769850332,-531.21,0.00019446,2]
[346187697,1734769850341,-2006.63,0.00019452,2]
[346187698,1734769850351,-500.0,0.00019452,2]
[346187699,1734769850360,-500.0,0.00019452,2]
[346187700,1734769850369,-2236.16,0.00019452,2]
[346187701,1734769850378,-1041.22,0.00019452,2]
[346187702,1734769850387,-1756.06,0.00019452,2]
[346187703,1734769850396,-500.0,0.00019452,2]
[346187704,1734769850405,-500.0,0.00019452,2]
[346187705,1734769850414,-3286.21,0.00019452,2]
[346187706,1734769850423,-3384.13,0.00019452,2]
[346187707,1734769850433,-3504.58,0.00019452,2]
[346187708,1734769850442,-1682.69,0.00019452,2]
[346187709,1734769850451,-500.0,0.00019452,2]
[346187710,1734769850461,-4268.95,0.00019452,2]
[346187711,1734769850472,-1837.3,0.00019452,2]
[346187712,1734769850482,-500.0,0.00019452,2]
[346187713,1734769850493,-1195.99,0.00019452,2]
[346187714,1734769850502,-1493.08,0.00019452,2]
[346187715,1734769850512,-2337.63,0.00019452,2]
[346187716,1734769850522,-30824.23,0.00019452,2]
[346187717,1734769850531,-1086.39,0.00019452,2]
[346187718,1734769850540,-500.0,0.00019452,2]
[346187719,1734769850550,-1126.87,0.00019452,2]
[346187720,1734769850559,-1124.1,0.00019452,2]
[346187721,1734769850569,-1271.09,0.00019452,2]
[346187722,1734769850578,-500.0,0.00019452,2]
[346187723,1734769850588,-615.26,0.00019452,2]
[346187724,1734769850598,-843.58834963,0.00019472,2]
[346187725,1734769850608,-543.67545684,0.00019472,2]
[346187726,1734769850618,-500.0,0.00019472,2]
[346187727,1734769850627,-500.0,0.00019472,2]
[346187728,1734769850637,-500.0,0.00019472,2]
[346187729,1734769850646,-500.0,0.00019472,2]
[346187730,1734769850655,-500.0,0.00019472,2]
[346187731,1734769850665,-500.0,0.00019472,2]
[346187732,1734769850674,-670.15,0.00019473,2]
[346187733,1734769850683,-2498.82,0.00019473,2]
[346187734,1734769850693,-534.2,0.00019473,2]
[346187735,1734769850702,-989.16,0.00019473,2]
[346187736,1734769850713,-1704.38,0.00019473,2]
[346187737,1734769850722,-155.072584,0.00019473,2]
[346187738,1734769850732,-1850.446606,0.00019473,2]
[346187739,1734769850743,-1732.72,0.00019473,2]
[346187740,1734769850753,-500.0,0.00019473,2]
[346187741,1734769850763,-1409.43,0.00019473,2]
[346187742,1734769850773,-2295.414532,0.00019473,2]
[346187743,1734769850783,-2264.0,0.00019473,2]
[346187744,1734769850792,-788.06,0.00019473,2]
[346187745,1734769850801,-624.58,0.00019473,2]
[346187746,1734769850811,-2855.29,0.00019473,2]
[346187747,1734769850820,-500.0,0.00019473,2]
[346187748,1734769850830,-500.0,0.00019473,2]
[346187749,1734769850839,-1040.51,0.00019473,2]
[346187750,1734769850848,-500.0,0.00019473,2]
[346187751,1734769850857,-2075.7,0.00019473,2]
[346187752,1734769850866,-1269.52,0.00019473,2]
[346187753,1734769850876,-7720.01,0.00019473,2]
[346187754,1734769850885,-500.0,0.00019473,2]
[346187755,1734769850895,-1581.9,0.00019473,2]
[346187756,1734769850905,-1508.43,0.00019473,2]
[346187757,1734769850914,-500.0,0.00019473,2]
[346187758,1734769850924,-1248.42,0.00019473,2]
[346187759,1734769850933,-4712.38,0.00019473,2]
[346187760,1734769850943,-7848.69,0.00019473,2]
[346187761,1734769850952,-2305.0,0.00019473,2]
[346187762,1734769850962,-500.0,0.00019473,2]
[346187763,1734769850971,-500.0,0.00019473,2]
[346187764,1734769850980,-500.0,0.00019473,2]
[346187765,1734769850990,-500.0,0.00019473,2]
[346187766,1734769850999,-8230.89,0.00019473,2]
[346187767,1734769851009,-1817.88,0.00019473,2]
[346187768,1734769851018,-900.0,0.00019518,2]
[346187769,1734769851027,-500.0,0.00019518,2]
[346187770,1734769851042,-843.58834963,0.00019518,2]
[346187771,1734769851052,-2000.0,0.00019539,2]
[346187772,1734769851062,-287.9718038,0.00019545,2]
[346187773,1734769851071,-1006.76,0.00019573,2]
[346187774,1734769851082,-1107.72,0.00019573,2]
[346187775,1734769851091,-500.0,0.00019573,2]
[346187776,1734769851101,-500.0,0.00019573,2]
[346187777,1734769851112,-500.0,0.00019573,2]
[346187778,1734769851122,-500.0,0.00019573,2]
[346187779,1734769851132,-500.0,0.00019573,2]
[346187780,1734769851141,-963.91,0.00019573,2]
[346187781,1734769851151,-500.0,0.00019573,2]
[346187782,1734769851162,-500.0,0.00019573,2]
[346187783,1734769851174,-500.0,0.00019573,2]
[346187784,1734769851183,-899.8,0.00019573,2]
[346187785,1734769851193,-550.76,0.00019573,2]
[346187786,1734769851202,-786.66,0.00019573,2]
[346187787,1734769851212,-581.7,0.00019573,2]
[346187788,1734769851221,-531.56,0.00019573,2]
[346187789,1734769851231,-500.0,0.00019573,2]
[346187790,1734769851240,-500.0,0.00019573,2]
[346187791,1734769851250,-500.0,0.00019573,2]
[346187792,1734769851260,-500.0,0.00019573,2]
[346187793,1734769851269,-500.0,0.00019573,2]
[346187795,1734769851279,-817.02,0.00019573,2]
[346187796,1734769851288,-500.0,0.00019573,2]
[346187797,1734769851297,-500.0,0.00019573,2]
[346187798,1734769851307,-500.0,0.00019573,2]
[346187799,1734769851316,-986.87,0.00019573,2]
[346187800,1734769851325,-500.0,0.00019573,2]
[346187801,1734769851335,-504.6034116,0.00019573,2]
[346187802,1734769851344,-908.9,0.00019573,2]
[346187803,1734769851354,-1018.49,0.00019573,2]
[346187804,1734769851363,-500.0,0.00019573,2]
[346187805,1734769851372,-1079.48,0.00019573,2]
[346187806,1734769851382,-500.0,0.00019573,2]
[346187807,1734769851391,-500.0,0.00019573,2]
[346187808,1734769851401,-500.0,0.00019573,2]
[346187809,1734769851410,-1322.87,0.00019573,2]
[346187810,1734769851419,-500.0,0.00019573,2]
[346187811,1734769851429,-500.0,0.00019573,2]
[346187812,1734769851438,-500.0,0.00019573,2]
[346187813,1734769851448,-500.0,0.00019573,2]
[346187814,1734769851457,-500.0,0.00019573,2]
[346187815,1734769851466,-1111.98,0.00019573,2]
[346187816,1734769851476,-1463.24,0.00019573,2]
[346187817,1734769851485,-500.0,0.00019573,2]
[346187818,1734769851497,-1272.79,0.00019573,2]
[346187819,1734769851507,-653.5,0.00019573,2]
[346187820,1734769851516,-500.0,0.00019573,2]
[346187821,1734769851525,-1142.97,0.00019573,2]
[346187822,1734769851534,-500.0,0.00019573,2]
[346187823,1734769851544,-1214.5,0.00019573,2]
[346187824,1734769851553,-693.93,0.00019573,2]
[346187825,1734769851562,-500.0,0.00019573,2]
[346187827,1734769851571,-500.0,0.00019573,2]
[346187828,1734769851581,-500.0,0.00019573,2]
[346187829,1734769851591,-500.0,0.00019573,2]
[346187830,1734769851600,-535.74,0.00019573,2]
[346187831,1734769851609,-866.47,0.00019573,2]
[346187832,1734769851619,-500.0,0.00019573,2]
[346187833,1734769851628,-1062.63,0.00019573,2]
[346187834,1734769851638,-500.0,0.00019573,2]
[346187835,1734769851647,-500.0,0.00019573,2]
[346187836,1734769851657,-500.0,0.00019573,2]
[346187837,1734769851666,-500.0,0.00019573,2]
[346187838,1734769851676,-771.8,0.00019573,2]
[346187839,1734769851689,-500.0,0.00019573,2]
[346187840,1734769851699,-500.0,0.00019573,2]
[346187841,1734769851709,-500.0,0.00019573,2]
[346187842,1734769851718,-500.0,0.00019573,2]
[346187843,1734769851728,-594.86,0.00019573,2]
[346187844,1734769851737,-1067.07,0.00019573,2]
[346187845,1734769851748,-500.0,0.00019573,2]
[346187846,1734769851757,-521.59,0.00019573,2]
[346187847,1734769851767,-500.0,0.00019573,2]
[346187848,1734769851776,-1968.56,0.00019573,2]
[346187849,1734769851786,-897.44,0.00019573,2]
[346187850,1734769851795,-1678.37,0.00019573,2]
[346187851,1734769851805,-500.0,0.00019573,2]
[346187852,1734769851816,-500.0,0.00019573,2]
[346187853,1734769851826,-743.27,0.00019573,2]
[346187854,1734769851837,-1183.83,0.00019573,2]
[346187855,1734769851846,-1115.72,0.00019573,2]
[346187856,1734769851857,-637.53,0.00019573,2]
[346187858,1734769851871,-500.0,0.00019573,2]
[346187859,1734769851884,-694.28,0.00019573,2]
[346187860,1734769851897,-1132.35,0.00019573,2]
[346187861,1734769851911,-720.98,0.00019573,2]
[346187862,1734769851922,-396.76977274,0.00019573,2]
[346187863,1734769851931,-500.0,0.00019573,2]
[346187864,1734769851941,-754.31,0.00019573,2]
[346187865,1734769851950,-1056.77,0.00019573,2]
[346187866,1734769851960,-1699.2,0.00019573,2]
[346187867,1734769851969,-958.54,0.00019573,2]
[346187868,1734769851979,-725.66,0.00019573,2]
[346187869,1734769851988,-1303.37,0.00019573,2]
[346187870,1734769852003,-1519.2,0.00019573,2]
[346187871,1734769852012,-1616.36,0.00019573,2]
[346187872,1734769852022,-1428.2,0.00019573,2]
[346187873,1734769852031,-601.26,0.00019573,2]
[346187874,1734769852044,-854.19,0.00019573,2]
[346187875,1734769852053,-500.0,0.00019573,2]
[346187876,1734769852062,-500.0,0.00019573,2]
[346187877,1734769852072,-500.0,0.00019573,2]
[346187878,1734769852082,-500.0,0.00019573,2]
[346187879,1734769852091,-514.03,0.00019573,2]
[346187880,1734769852100,-500.0,0.00019573,2]
[346187881,1734769852110,-1403.09,0.00019573,2]
[346187882,1734769852121,-1542.93,0.00019573,2]
[346187883,1734769852130,-513.35389525,0.00019573,2]
[346187884,1734769852140,-1934.91,0.00019573,2]
[346187885,1734769852217,-709.92,0.00019573,2]
[346187886,1734769852226,-742.36,0.00019573,2]
[346187887,1734769852236,-509.22524717,0.00019573,2]
[346187888,1734769852247,-500.0,0.00019573,2]
[346187889,1734769852256,-2451.17,0.00019573,2]
[346187890,1734769852265,-500.0,0.00019573,2]
[346187891,1734769852274,-287.89113812,0.00019573,2]
[346187892,1734769852283,-500.0,0.00019573,2]
[346187893,1734769852292,-500.0,0.00019573,2]
[346187894,1734769852302,-500.0,0.00019573,2]
[346187895,1734769852311,-825.21,0.00019573,2]
[346187897,1734769852320,-1111.89,0.00019573,2]
[346187898,1734769852330,-500.0,0.00019573,2]
[346187899,1734769852339,-500.0,0.00019573,2]
[346187900,1734769852348,-1379.34,0.00019573,2]
[346187901,1734769852357,-500.0,0.00019573,2]
[346187902,1734769852366,-500.0,0.00019573,2]
[346187903,1734769852376,-4072.68,0.00019573,2]
[346187904,1734769852385,-1131.46,0.00019573,2]
[346187905,1734769852394,-504.46242411,0.00019573,2]
[346187906,1734769852403,-597.23942666,0.00019573,2]
[346187907,1734769852412,-4144.12,0.00019573,2]
[346187908,1734769852421,-274.54535507,0.00019573,2]
[346187909,1734769852430,-359.85213615,0.00019573,2]
[346187910,1734769852443,-151.0,0.00019617,2]
[346187911,1734769852453,-1831.761634,0.00019617,2]
[346187912,1734769852462,-1291.001743,0.00019617,2]
[346187913,1734769852471,-1291.001743,0.00019617,2]
[346187914,1734769852480,-3503.71,0.00019617,2]
[346187915,1734769852489,-1024.59,0.00019617,2]
[346187916,1734769852500,-3237.21,0.00019617,2]
[346187917,1734769852509,-500.0,0.00019617,2]
[346187918,1734769852518,-1586.97,0.00019617,2]
[346187919,1734769852527,-500.0,0.00019618,2]
[346187920,1734769852536,-442.36466695,0.00019618,2]
[346187921,1734769852545,-500.0,0.00019618,2]
[346187922,1734769852555,-412.55996325,0.00019618,2]
[346187923,1734769852564,-500.0,0.00019618,2]
[346187924,1734769852574,-213.71419443,0.00019618,2]
[346187925,1734769852583,-375.83008833,0.00019618,2]
[346187926,1734769852593,-457.39736453,0.00019618,2]
[346187927,1734769852602,-500.0,0.00019618,2]
[346187928,1734769852612,-468.87798258,0.00019618,2]
[346187929,1734769852622,-500.0,0.00019618,2]
[346187930,1734769852631,-500.0,0.00019618,2]
[346187931,1734769852641,-500.0,0.00019618,2]
[346187932,1734769852651,-500.0,0.00019618,2]
[346187933,1734769852661,-500.0,0.00019618,2]
[346187934,1734769852670,-500.0,0.00019618,2]
[346187935,1734769852679,-522.70758351,0.00019618,2]
[346187936,1734769852689,-500.0,0.00019618,2]
[346187937,1734769852699,-500.0,0.00019618,2]
[346187938,1734769852708,-500.0,0.00019618,2]
[346187939,1734769852720,-500.0,0.00019618,2]
[346187940,1734769852729,-500.0,0.00019618,2]
[346187941,1734769852738,-500.0,0.00019618,2]
[346187942,1734769852749,-500.0,0.00019618,2]
[346187944,1734769852758,-500.0,0.00019618,2]
[346187945,1734769852767,-500.0,0.00019618,2]
[346187946,1734769852776,-500.0,0.00019618,2]
[346187947,1734769852785,-500.0,0.00019618,2]
[346187948,1734769852794,-500.0,0.00019618,2]
[346187949,1734769852803,-500.0,0.00019618,2]
[346187950,1734769852813,-500.0,0.00019618,2]
[346187951,1734769852822,-500.0,0.00019618,2]
[346187952,1734769852831,-500.0,0.00019618,2]
[346187953,1734769852840,-500.0,0.00019618,2]
[346187954,1734769852849,-584.16925731,0.00019618,2]
[346187955,1734769852858,-575.40107489,0.00019618,2]
[346187956,1734769852867,-500.0,0.00019618,2]
[346187957,1734769852876,-555.27,0.00019618,2]
[346187958,1734769852885,-500.0,0.00019618,2]
[346187959,1734769852895,-500.0,0.00019618,2]
[346187960,1734769852904,-500.0,0.00019618,2]
[346187961,1734769852914,-500.0,0.00019618,2]
[346187962,1734769852923,-500.0,0.00019618,2]
[346187963,1734769852933,-500.0,0.00019618,2]
[346187964,1734769852942,-500.0,0.00019618,2]
[346187965,1734769852951,-500.0,0.00019618,2]
[346187966,1734769852960,-500.0,0.00019618,2]
[346187967,1734769852970,-500.0,0.00019618,2]
[346187968,1734769852979,-500.0,0.00019618,2]
[346187969,1734769852989,-500.0,0.00019618,2]
[346187970,1734769853000,-500.0,0.00019618,2]
[346187971,1734769853010,-500.0,0.00019618,2]
[346187972,1734769853019,-614.79,0.00019618,2]
[346187973,1734769853029,-381.21271565,0.00019618,2]
[346187974,1734769853041,-500.0,0.00019618,2]
[346187975,1734769853051,-430.03678522,0.00019618,2]
[346187976,1734769853062,-535.86320061,0.00019618,2]
[346187977,1734769853071,-500.0,0.00019618,2]
[346187978,1734769853080,-500.0,0.00019618,2]
[346187979,1734769853090,-500.0,0.00019618,2]
[346187980,1734769853099,-500.0,0.00019618,2]
[346187981,1734769853108,-500.0,0.00019618,2]
[346187982,1734769853118,-152.86188766,0.00019618,2]
[346187983,1734769853128,-500.0,0.00019618,2]
[346187984,1734769853137,-615.53,0.00019618,2]
[346187985,1734769853146,-500.0,0.00019618,2]